bitfinex/quotes_SOLUSD_20240726
["timestamp","ask_amount","ask_price","bid_price","bid_amount"]
[1721967564985,6.411,176.38,176.31,12.5]
[1721967565308,6.411,176.38,176.26,1.02048323]
[1721967565309,6.411,176.38,176.34,12.5]
[1721967565597,18.911,176.38,176.34,12.5]
[1721967566103,12.5,176.37,176.33,12.5]
[1721967566271,12.5,176.36,176.32,12.5]
[1721967566598,13.91773807,176.37,176.33,12.5]
[1721967567880,12.5,176.37,176.33,12.5]
[1721967569107,12.5,176.36,176.32,12.5]
[1721967569306,1.41776426,176.35,176.32,12.5]
[1721967569600,1.41776426,176.35,176.31,12.5]
[1721967569807,12.5,176.36,176.31,12.5]
[1721967569987,12.5,176.35,176.31,12.5]
[1721967570691,12.5,176.36,176.32,12.5]
[1721967574197,7.08766547,176.37,176.31,12.5]
[1721967574198,12.5,176.35,176.31,12.5]
[1721967574715,12.5,176.36,176.31,12.5]
[1721967575079,12.5,176.35,176.31,12.5]
[1721967576885,11.5,176.35,176.31,12.5]
[1721967577800,11.5,176.35,176.3,12.5]
[1721967578697,12.5,176.34,176.3,12.5]
[1721967581405,7.08766547,176.37,176.3,12.5]
[1721967581606,12.5,176.34,176.3,12.5]
[1721967582308,6.411,176.38,176.3,12.5]
[1721967582599,12.5,176.35,176.31,12.5]
[1721967582994,12.5,176.34,176.3,12.5]
[1721967583308,12.5,176.31,176.25,0.98403276]
[1721967583605,12.5,176.31,176.27,12.5]
[1721967584181,12.5,176.31,176.24,5.91984153]
[1721967584182,12.5,176.28,176.24,5.91984153]
[1721967584385,12.5,176.25,176.21,12.5]
[1721967584602,46.41816488,176.3,176.2,12.5]
[1721967584603,12.5,176.24,176.2,12.5]
[1721967585179,12.5,176.22,176.18,12.5]
[1721967585383,1.41876704,176.29,176.18,12.5]
[1721967585609,12.5,176.23,176.19,12.5]
[1721967587898,12.5,176.22,176.18,12.5]
[1721967589092,13.91890496,176.23,176.19,12.5]
[1721967589287,12.5,176.22,176.18,12.5]
[1721967589499,1.41893716,176.21,176.18,12.5]
[1721967589814,12.5,176.22,176.18,12.5]
[1721967590028,13.91893522,176.22,176.15,0.98441885]
[1721967590192,12.5,176.22,176.18,12.5]
[1721967590392,12.5,176.21,176.17,12.5]
[1721967592294,12.5,176.18,176.14,12.5]
[1721967592594,1.41899463,176.23,176.14,12.5]
[1721967592794,12.5,176.18,176.14,12.5]
[1721967593306,12.5,176.19,176.15,12.5]
[1721967596021,12.5,176.21,176.17,12.5]
[1721967596230,12.5,176.2,176.16,12.5]
[1721967596597,5.6741,176.24,176.18,12.5]
[1721967596800,12.5,176.23,176.19,12.5]
[1721967597003,27.6324,176.25,176.13,13.52245677]
[1721967597004,21.9586,176.25,176.2,12.5]
[1721967597198,12.5,176.24,176.2,12.5]
[1721967597419,21.9586,176.25,176.21,12.5]
[1721967597620,12.5,176.27,176.23,12.5]
[1721967599724,21.8988,176.3,176.23,12.5]
[1721967599923,12.5,176.27,176.23,12.5]
[1721967600228,18.1731,176.27,176.23,12.5]
[1721967600403,5.6741,176.24,176.2,12.5]
[1721967600607,12.5,176.22,176.16,16.0841]
[1721967600925,12.5,176.21,176.17,32.5]
[1721967601220,18.175,176.21,176.17,32.5]
[1721967601433,12.5,176.19,176.15,12.5]
[1721967601600,1.41923208,176.18,176.13,12.5]
[1721967601798,33.2292,176.22,176.13,12.5]
[1721967601799,12.5,176.17,176.13,12.5]
[1721967602432,13.91924688,176.17,176.13,12.5]
[1721967602803,19.59554688,176.17,176.13,12.5]
[1721967603021,12.5,176.16,176.12,12.5]
[1721967603802,12.5,176.16,176.08,23.98827458]
[1721967604008,12.5,176.16,176.12,12.5]
[1721967604225,12.5,176.17,176.13,12.5]
[1721967604432,5.6757,176.19,176.13,12.5]
[1721967604607,12.5,176.18,176.14,12.5]
[1721967604811,12.5,176.2,176.16,12.5]
[1721967605632,18.1753,176.2,176.16,12.5]
[1721967606012,12.5,176.19,176.15,12.5]
[1721967606709,5.6753,176.2,176.08,45.01155223]
[1721967606710,12.5,176.21,176.17,12.5]
[1721967606910,17.60836573,176.22,176.18,12.5]
[1721967606911,35.78316573,176.22,176.18,12.5]
[1721967607240,18.1754,176.2,176.16,12.5]
[1721967607404,1.41913206,176.19,176.16,12.5]
[1721967607604,17.04,176.25,176.08,25.01155223]
[1721967607605,16.0295,176.26,176.18,12.5]
[1721967607805,7.09322163,176.24,176.19,12.5]
[1721967608031,12.5,176.23,176.19,12.5]
[1721967609117,12.5,176.21,176.17,12.5]
[1721967609328,13.91906507,176.2,176.16,12.5]
[1721967609545,1.4190974,176.19,176.16,12.5]
[1721967610042,1.4190974,176.19,176.08,25.01126619]
[1721967610244,12.5,176.16,176.12,12.5]
[1721967610825,13.91937033,176.15,176.11,12.5]
[1721967611240,1.41937033,176.15,176.11,12.5]
[1721967611440,12.5,176.16,176.12,12.5]
[1721967611644,12.5,176.16,176.08,23.98827458]
[1721967611829,13.91954112,176.15,176.11,12.5]
[1721967612142,12.5,176.15,176.11,12.5]
[1721967612350,5.6766,176.16,176.09,25.1]
[1721967612527,5.6766,176.16,176.1,20.0]
[1721967613652,7.09643821,176.15,176.09,25.1]
[1721967614142,25.1,176.17,176.09,25.1]
[1721967614143,1.41954044,176.14,176.09,25.1]
[1721967614527,7.09624044,176.16,176.09,25.1]
[1721967614727,5.677,176.15,176.09,25.1]
[1721967614949,7.0966202,176.15,176.09,25.1]
[1721967615337,1.4196202,176.15,176.09,25.1]
[1721967615728,30.7763,176.17,176.09,25.1]
[1721967616030,1.41943405,176.18,176.09,25.1]
[1721967616447,1.41939549,176.17,176.09,25.1]
[1721967616638,46.41939549,176.17,176.09,25.1]
[1721967616838,45.0,176.17,176.09,25.1]
[1721967617225,5.6766,176.16,176.09,25.1]
[1721967617430,50.6764,176.17,176.09,25.1]
[1721967618428,65.0775312,176.19,176.09,25.1]
[1721967618429,5.676,176.18,176.09,25.1]
[1721967618724,5.676,176.18,176.1,20.0]
[1721967618932,5.6761,176.18,176.1,20.0]
[1721967619635,5.6761,176.18,176.11,25.1]
[1721967619845,52.2937,176.19,176.11,25.1]
[1721967620655,21.0833,176.19,176.11,25.1]
[1721967620842,1.41922857,176.2,176.13,25.1]
[1721967621445,7.09482857,176.2,176.13,25.1]
[1721967621645,1.41922857,176.2,176.13,25.1]
[1721967621852,5.6747,176.22,176.15,25.1]
[1721967622152,27.7498,176.23,176.15,25.1]
[1721967622357,21.6117,176.23,176.16,20.0]
[1721967622852,15.9373,176.23,176.16,20.0]
[1721967623037,5.6737,176.25,176.17,25.1]
[1721967623230,5.6737,176.25,176.16,20.0]
[1721967623231,5.6734,176.26,176.19,25.1]
[1721967623455,25.1,176.29,176.21,25.1]
[1721967623966,37.4198,176.31,176.21,25.1]
[1721967623967,5.6708,176.35,176.25,25.1]
[1721967624130,1.41810465,176.35,176.27,25.1]
[1721967624564,25.1,176.34,176.21,6.0148]
[1721967624767,1.41835854,176.33,176.23,25.1]
[1721967624938,5.6741,176.24,176.15,21.7614]
[1721967625141,25.1,176.27,176.17,25.1]
[1721967625383,5.6734,176.26,176.17,25.1]
[1721967625664,5.6738,176.25,176.17,25.1]
[1721967625843,7.09212412,176.26,176.17,25.1]
[1721967626044,1.41872412,176.26,176.17,25.1]
[1721967626247,7.09212412,176.26,176.18,20.0]
[1721967626967,1.41872412,176.26,176.19,25.1]
[1721967627639,1.41872412,176.26,176.18,20.0]
[1721967627640,1.41872246,176.26,176.18,20.0]
[1721967627845,1.41872246,176.26,176.16,45.1]
[1721967628041,25.1,176.24,176.16,45.1]
[1721967628562,25.1,176.26,176.16,45.1]
[1721967628759,30.7736,176.26,176.18,25.1]
[1721967628967,5.6731,176.27,176.18,25.1]
[1721967629262,5.6731,176.27,176.15,21.7614]
[1721967629263,1.41861712,176.26,176.2,25.1]
[1721967629970,1.41861712,176.26,176.19,20.0]
[1721967629971,64.4193,176.32,176.22,25.1]
[1721967630144,25.1,176.34,176.24,25.1]
[1721967630343,30.7709,176.34,176.26,25.1]
[1721967631072,25.1,176.4,176.3,25.1]
[1721967631246,25.1,176.4,176.32,25.1]
[1721967631567,11.9595,176.41,176.32,25.1]
[1721967631874,5.6699,176.37,176.3,25.1]
[1721967632088,5.6702,176.36,176.3,25.1]
[1721967632269,1.41788588,176.37,176.25,20.0]
[1721967632270,7.08855305,176.35,176.28,25.1]
[1721967632991,5.6706,176.35,176.28,25.1]
[1721967634082,5.6702,176.36,176.28,25.1]
[1721967634290,7.08814756,176.36,176.28,25.1]
[1721967634681,25.1,176.38,176.28,25.1]
[1721967634889,5.6705,176.35,176.28,25.1]
[1721967635475,5.6708,176.34,176.28,25.1]
[1721967636367,5.6712,176.33,176.26,25.1]
[1721967636566,5.6712,176.33,176.23,22.5622]
[1721967636567,26.51807605,176.32,176.24,25.1]
[1721967637092,5.6718,176.31,176.24,25.1]
[1721967637297,5.6719,176.31,176.24,25.1]
[1721967637500,32.18965083,176.32,176.24,25.1]
[1721967637879,32.18965083,176.32,176.25,20.0]
[1721967639901,25.1,176.3,176.22,25.1]
[1721967640101,1.4183042,176.29,176.23,20.0]
[1721967640592,25.1,176.3,176.23,20.0]
[1721967642782,1.41831981,176.29,176.22,25.1]
[1721967643676,1.41831981,176.29,176.2,25.1]
[1721967643876,25.1,176.28,176.2,25.1]
[1721967644075,7.09171879,176.27,176.2,25.1]
[1721967644272,1.41861862,176.26,176.2,25.1]
[1721967644496,7.09201862,176.26,176.2,25.1]
[1721967644700,7.09201862,176.26,176.18,25.1]
[1721967644881,32.19201862,176.26,176.18,25.1]
[1721967645300,1.41867178,176.25,176.18,25.1]
[1721967645904,25.1,176.3,176.2,25.1]
[1721967646092,30.7722,176.3,176.22,25.1]
[1721967646394,32.19059317,176.3,176.22,25.1]
[1721967646794,25.1,176.3,176.22,25.1]
[1721967647805,30.7722,176.3,176.22,25.1]
[1721967648889,36.7955,176.32,176.24,25.1]
[1721967649091,5.6718,176.31,176.24,25.1]
[1721967649386,6.0237,176.32,176.24,25.1]
[1721967649795,1.41810953,176.31,176.24,25.1]
[1721967650195,21.6824,176.37,176.29,25.1]
[1721967650393,5.6705,176.35,176.29,25.1]
[1721967651494,5.6709,176.34,176.29,25.1]
[1721967653820,5.6713,176.33,176.29,25.1]
[1721967654114,21.6824,176.37,176.24,6.2819]
[1721967654115,7.08957221,176.32,176.27,25.1]
[1721967654292,5.6715,176.32,176.27,25.1]
[1721967654706,5.6711,176.33,176.27,25.1]
[1721967656202,32.18887221,176.34,176.27,25.1]
[1721967656399,5.6708,176.35,176.27,25.1]
[1721967657314,5.6709,176.34,176.27,25.1]
[1721967657517,7.088563,176.35,176.27,25.1]
[1721967658411,1.417963,176.35,176.27,25.1]
[1721967658615,5.6715,176.32,176.25,25.1]
[1721967658805,1.41824806,176.31,176.25,25.1]
[1721967659321,7.09004806,176.31,176.25,25.1]
[1721967659500,1.41824806,176.31,176.23,25.1]
[1721967659699,5.6723,176.3,176.23,25.1]
[1721967659903,7.09101332,176.29,176.23,25.1]
[1721967660201,1.41841332,176.29,176.21,25.1]
[1721967660407,5.6728,176.28,176.21,25.1]
[1721967661115,7.09169126,176.27,176.21,25.1]
[1721967661921,5.6728,176.28,176.21,25.1]
[1721967662720,1.41858957,176.27,176.21,25.1]
[1721967662915,16.4406,176.29,176.21,25.1]
[1721967662916,23.53179057,176.29,176.21,25.1]
[1721967663496,5.6728,176.28,176.21,25.1]
[1721967663902,23.53169057,176.29,176.21,25.1]
[1721967664110,5.6728,176.28,176.21,25.1]
[1721967664623,7.09161021,176.27,176.21,25.1]
[1721967664924,7.09161021,176.27,176.19,25.1]
[1721967665218,25.1,176.24,176.17,5.91929528]
[1721967665402,5.6753,176.21,176.14,41.5067]
[1721967665606,1.41910327,176.2,176.14,25.1]
[1721967666004,5.6739,176.25,176.18,25.1]
[1721967666314,5.6745,176.23,176.18,25.1]
[1721967666520,1.4188809,176.23,176.18,25.1]
[1721967666923,7.0932809,176.23,176.16,25.1]
[1721967668421,1.4188809,176.23,176.16,25.1]
[1721967668716,7.0932809,176.23,176.16,25.1]
[1721967668915,5.6744,176.23,176.16,25.1]
[1721967669421,5.6741,176.24,176.16,25.1]
[1721967669645,5.6733,176.27,176.2,25.1]
[1721967670432,24.40785887,176.29,176.22,25.1]
[1721967670638,31.2969,176.33,176.24,25.1]
[1721967670965,11.8668,176.37,176.3,25.1]
[1721967671247,5.6705,176.35,176.3,25.1]
[1721967671430,5.6712,176.33,176.28,25.1]
[1721967671632,1.41812229,176.32,176.26,25.1]
[1721967671842,1.41812229,176.32,176.25,20.0]
[1721967672029,26.51812229,176.32,176.25,20.0]
[1721967672223,5.6719,176.31,176.25,20.0]
[1721967672424,5.6711,176.33,176.25,20.0]
[1721967672731,30.7711,176.34,176.25,20.0]
[1721967672936,30.7711,176.34,176.26,25.1]
[1721967672937,5.6711,176.33,176.26,25.1]
[1721967674468,26.51812219,176.34,176.26,25.1]
[1721967674469,1.41812141,176.32,176.26,25.1]
[1721967674672,5.6722,176.3,176.24,25.1]
[1721967674842,5.6718,176.31,176.24,25.1]
[1721967675045,5.6721,176.3,176.24,25.1]
[1721967675653,5.6718,176.31,176.24,25.1]
[1721967675944,7.09048917,176.3,176.24,25.1]
[1721967676144,25.1,176.32,176.24,25.1]
[1721967676347,5.6712,176.33,176.24,25.1]
[1721967676548,1.41811409,176.32,176.26,25.1]
[1721967676763,7.08929667,176.33,176.26,25.1]
[1721967677457,7.08929667,176.33,176.24,25.1]
[1721967677458,1.4181215,176.32,176.24,25.1]
[1721967677658,42.14,176.31,176.22,25.1]
[1721967677864,5.6735,176.26,176.2,25.1]
[1721967678793,7.09139952,176.28,176.2,25.1]
[1721967679852,26.51859937,176.29,176.22,25.1]
[1721967680059,1.41859937,176.29,176.22,25.1]
[1721967680452,1.41859937,176.29,176.18,16.2263]
[1721967680453,5.6733,176.27,176.2,25.1]
[1721967680680,1.41864353,176.26,176.2,25.1]
[1721967682586,5.6738,176.25,176.2,25.1]
[1721967683267,7.09287016,176.24,176.18,25.1]
[1721967683460,1.41888408,176.23,176.18,25.1]
[1721967684481,5.6741,176.24,176.18,25.1]
[1721967684980,42.14,176.27,176.18,25.1]
[1721967685163,50.6735,176.26,176.18,25.1]
[1721967685566,7.09253259,176.25,176.18,25.1]
[1721967687481,5.6737,176.25,176.18,25.1]
[1721967687682,50.6734,176.26,176.18,25.1]
[1721967688063,5.6737,176.25,176.18,25.1]
[1721967688289,5.6741,176.24,176.18,25.1]
[1721967689370,5.6738,176.25,176.18,25.1]
[1721967690185,30.7734,176.27,176.18,25.1]
[1721967690490,7.09212653,176.27,176.2,25.1]
[1721967690795,5.6727,176.29,176.22,25.1]
[1721967690961,30.772,176.31,176.22,25.1]
[1721967691161,5.6715,176.32,176.24,25.1]
[1721967691496,1.41827723,176.32,176.26,25.1]
[1721967691662,23.88508618,176.39,176.28,25.1]
[1721967691984,23.88508618,176.39,176.22,40.186]
[1721967691985,5.6699,176.37,176.3,25.1]
[1721967692374,5.6696,176.38,176.3,25.1]
[1721967693174,5.6699,176.37,176.3,25.1]
[1721967693385,5.6696,176.38,176.3,25.1]
[1721967693593,5.6692,176.4,176.32,25.1]
[1721967694496,5.6696,176.38,176.32,25.1]
[1721967695574,7.08762728,176.37,176.3,25.1]
[1721967696578,31.2112,176.42,176.33,25.1]
[1721967696579,5.6686,176.41,176.33,25.1]
[1721967697392,11.87752947,176.45,176.35,25.1]
[1721967697693,17.54482947,176.45,176.35,45.1]
[1721967697893,18.96210104,176.45,176.35,45.1]
[1721967698073,5.6676,176.44,176.35,45.1]
[1721967698397,5.6683,176.42,176.35,45.1]
[1721967698601,1.41752464,176.42,176.35,45.1]
[1721967698775,43.55748456,176.44,176.35,45.1]
[1721967699173,17.04,176.41,176.33,25.1]
[1721967699392,30.7698,176.38,176.29,25.1]
[1721967699569,1.41783213,176.35,176.29,25.1]
[1721967699978,7.08833213,176.35,176.29,25.1]
[1721967700779,1.54798188,176.36,176.29,25.1]
[1721967701276,1.54798188,176.36,176.31,25.1]
[1721967701995,1.54798188,176.36,176.26,15.1342]
[1721967702295,7.08859206,176.35,176.28,25.1]
[1721967702598,1.41779206,176.35,176.26,25.1]
[1721967702794,5.6718,176.32,176.26,25.1]
[1721967702981,5.6718,176.31,176.24,25.1]
[1721967703180,1.41823609,176.32,176.24,25.1]
[1721967703690,7.08973609,176.32,176.24,25.1]
[1721967704297,1.41823609,176.32,176.24,25.1]
[1721967704477,1.41821151,176.33,176.24,25.1]
[1721967704811,1.41821023,176.32,176.24,25.1]
[1721967705094,1.41821023,176.32,176.25,20.0]
[1721967705399,5.6718,176.31,176.25,20.0]
[1721967705603,7.08971023,176.32,176.25,20.0]
[1721967705902,5.6718,176.31,176.21,16.307]
[1721967706079,70.1,176.3,176.2,25.1]
[1721967706286,1.41853863,176.31,176.28,25.1]
[1721967706476,1.41853863,176.33,176.28,25.1]
[1721967706790,18.45853863,176.33,176.26,25.1]
[1721967707195,17.04,176.33,176.26,25.1]
[1721967707384,30.7709,176.34,176.26,25.1]
[1721967707577,7.08929957,176.33,176.26,25.1]
[1721967708098,30.7709,176.34,176.26,25.1]
[1721967708299,5.6709,176.34,176.26,25.1]
[1721967708483,1.41809006,176.34,176.26,25.1]
[1721967708679,25.1,176.29,176.21,25.1]
[1721967708886,1.41848288,176.28,176.21,25.1]
[1721967709500,7.09148288,176.28,176.18,5.91768823]
[1721967709807,7.09148288,176.28,176.21,25.1]
[1721967710901,7.09148288,176.28,176.22,20.0]
[1721967711198,1.41848288,176.28,176.22,20.0]
[1721967711806,1.41848288,176.28,176.21,25.1]
[1721967711807,7.09148288,176.28,176.21,25.1]
[1721967712302,5.6736,176.26,176.21,25.1]
[1721967712477,46.41881641,176.25,176.19,25.1]
[1721967712676,45.0,176.25,176.19,25.1]
[1721967713005,7.09221166,176.26,176.19,25.1]
[1721967713202,1.41881166,176.26,176.19,25.1]
[1721967713411,7.09231166,176.26,176.19,25.1]
[1721967713712,25.1,176.25,176.17,25.1]
[1721967713888,14.1822,176.28,176.15,25.1]
[1721967713889,42.14,176.23,176.15,25.1]
[1721967714215,52.0941494,176.22,176.15,25.1]
[1721967714713,5.6751,176.21,176.15,25.1]
[1721967714911,17.04,176.26,176.17,25.1]
[1721967715081,70.1,176.25,176.17,25.1]
[1721967715281,5.6748,176.22,176.17,25.1]
[1721967715504,1.41908965,176.21,176.15,25.1]
[1721967716111,7.09349916,176.23,176.15,25.1]
[1721967716303,5.6749,176.22,176.15,25.1]
[1721967716476,1.4190989,176.21,176.15,25.1]
[1721967717103,1.41909867,176.2,176.15,25.1]
[1721967717306,1.41909867,176.2,176.13,25.1]
[1721967717980,5.6759,176.19,176.13,25.1]
[1721967718801,7.09439867,176.2,176.13,25.1]
[1721967719635,1.41909867,176.2,176.13,25.1]
[1721967719797,28.1935,176.21,176.13,25.1]
[1721967720400,28.1935,176.21,176.09,16.2284]
[1721967720401,28.1935,176.21,176.15,25.1]
[1721967720609,1.41911512,176.24,176.15,25.1]
[1721967720789,18.45911512,176.24,176.15,25.1]
[1721967720988,46.41910603,176.23,176.15,25.1]
[1721967721506,45.0,176.23,176.15,25.1]
[1721967721910,7.21818188,176.36,176.22,72.3876]
[1721967722099,5.6711,176.34,176.3,25.1]
[1721967722705,5.6705,176.35,176.3,25.1]
[1721967722883,5.6709,176.34,176.28,25.1]
[1721967723413,18.58798188,176.36,176.17,16.0713]
[1721967723414,17.04,176.28,176.17,16.0713]
[1721967723712,17.04,176.28,176.14,6.3991]
[1721967723713,43.55876877,176.27,176.2,25.1]
[1721967723901,45.0,176.26,176.2,25.1]
[1721967724095,25.1,176.27,176.2,25.1]
[1721967724297,17.04,176.28,176.18,20.0]
[1721967724511,45.0,176.27,176.18,20.0]
[1721967725016,50.6733,176.27,176.18,20.0]
[1721967725190,1.41876639,176.26,176.18,20.0]
[1721967725510,7.09226639,176.26,176.18,20.0]
[1721967725912,1.41876639,176.26,176.14,6.3991]
[1721967726112,5.6747,176.22,176.15,28.2]
[1721967726497,7.09374999,176.22,176.15,28.2]
[1721967726910,7.09374999,176.22,176.09,19.59655407]
[1721967726911,18.45904999,176.22,176.09,19.59655407]
[1721967727119,5.6753,176.2,176.11,28.2]
[1721967727419,1.41924103,176.19,176.11,28.2]
[1721967728318,1.41916865,176.23,176.13,28.2]
[1721967728521,1.41916865,176.23,176.14,20.0]
[1721967728816,1.41916865,176.23,176.15,28.2]
[1721967729022,23.6552,176.26,176.17,28.2]
[1721967729231,50.6738,176.25,176.17,28.2]
[1721967729524,5.6741,176.24,176.17,28.2]
[1721967729892,13.70743719,176.26,176.19,28.2]
[1721967730217,15.5314,176.27,176.19,28.2]
[1721967730218,21.2045,176.27,176.19,28.2]
[1721967731814,5.6725,176.29,176.21,28.2]
[1721967732019,5.6728,176.28,176.21,28.2]
[1721967732796,5.6731,176.27,176.21,28.2]
[1721967733016,5.6734,176.26,176.21,28.2]
[1721967733393,5.6731,176.27,176.21,28.2]
[1721967733592,5.6734,176.26,176.21,28.2]
[1721967734196,5.674,176.24,176.19,28.2]
[1721967734397,5.674,176.24,176.17,43.9757]
[1721967734699,5.674,176.24,176.18,20.0]
[1721967734908,5.6737,176.25,176.18,20.0]
[1721967735105,5.6732,176.27,176.19,28.2]
[1721967736089,5.6734,176.26,176.19,28.2]
[1721967736289,37.4169,176.3,176.15,6.2716]
[1721967736290,46.41869421,176.25,176.16,28.2]
[1721967736492,46.41869421,176.25,176.13,15.7757]
[1721967736493,63.45869421,176.25,176.14,28.2]
[1721967736714,5.6751,176.21,176.14,28.2]
[1721967736892,5.6751,176.21,176.13,15.7757]
[1721967736893,1.41908037,176.2,176.13,15.7757]
[1721967738311,1.41908037,176.2,176.14,20.0]
[1721967738709,5.6753,176.21,176.14,20.0]
[1721967739921,5.6747,176.22,176.14,48.2]
[1721967740097,45.0,176.25,176.14,48.2]
[1721967740299,5.6746,176.23,176.14,48.2]
[1721967740600,5.6745,176.23,176.14,48.2]
[1721967742327,5.675,176.22,176.14,48.2]
[1721967742903,5.6744,176.23,176.14,48.2]
[1721967743826,1.41892439,176.22,176.14,20.0]
[1721967744005,5.6751,176.21,176.14,20.0]
[1721967745503,5.6754,176.2,176.14,20.0]
[1721967746006,5.6754,176.2,176.12,20.0]
[1721967747223,1.41905498,176.23,176.12,20.0]
[1721967747425,5.6741,176.24,176.13,28.2]
[1721967747729,5.6741,176.24,176.14,20.0]
[1721967748222,15.3798,176.28,176.15,28.2]
[1721967748402,5.6736,176.26,176.17,28.2]
[1721967748606,1.41890526,176.27,176.17,28.2]
[1721967748814,11.8685,176.3,176.2,28.2]
[1721967749022,1.41843746,176.29,176.21,20.0]
[1721967749620,5.6724,176.3,176.21,20.0]
[1721967749932,1.41843697,176.29,176.21,20.0]
[1721967750236,5.6724,176.3,176.21,20.0]
[1721967751323,5.6725,176.29,176.21,20.0]
[1721967752105,7.09053583,176.31,176.21,20.0]
[1721967752310,1.41843583,176.31,176.22,28.2]
[1721967753132,5.6721,176.3,176.22,28.2]
[1721967753326,5.6727,176.29,176.22,28.2]
[1721967753638,1.41843751,176.29,176.22,28.2]
[1721967753839,1.41843746,176.33,176.22,28.2]
[1721967754036,23.2635,176.34,176.24,28.2]
[1721967754037,5.6715,176.32,176.24,28.2]
[1721967754339,5.6718,176.31,176.26,25.05]
[1721967755239,5.6715,176.32,176.26,25.05]
[1721967755942,5.6718,176.31,176.26,25.05]
[1721967756321,5.6715,176.32,176.24,28.18]
[1721967757733,5.6719,176.31,176.24,28.18]
[1721967758114,5.6715,176.32,176.24,28.18]
[1721967758341,7.08967932,176.32,176.24,28.18]
[1721967759241,5.6715,176.32,176.24,28.18]
[1721967761146,5.6711,176.33,176.24,28.18]
[1721967761326,7.08967969,176.32,176.25,20.0]
[1721967761825,1.41817969,176.32,176.25,20.0]
[1721967762028,1.41817969,176.32,176.26,28.18]
[1721967762234,18.45818457,176.35,176.26,28.18]
[1721967762431,45.0,176.34,176.26,28.18]
[1721967763025,5.6711,176.33,176.26,28.18]
[1721967763242,5.6715,176.32,176.26,28.18]
[1721967764147,7.0893791,176.33,176.26,28.18]
[1721967765446,7.08977876,176.32,176.25,20.0]
[1721967765847,1.41817876,176.32,176.25,20.0]
[1721967766056,5.6712,176.33,176.25,20.0]
[1721967766645,18.45822494,176.33,176.24,28.18]
[1721967766952,5.6728,176.28,176.2,28.18]
[1721967767742,5.6725,176.29,176.2,28.18]
[1721967768054,1.4185168,176.28,176.2,28.18]
[1721967768352,5.6721,176.3,176.2,28.18]
[1721967768728,7.09052017,176.3,176.2,28.18]
[1721967769667,7.09052017,176.3,176.21,20.0]
[1721967769831,5.6725,176.29,176.21,20.0]
[1721967770148,5.673,176.28,176.21,20.0]
[1721967770337,1.41857363,176.27,176.2,28.18]
[1721967770538,7.09167363,176.27,176.21,20.0]
[1721967770753,5.6728,176.28,176.21,20.0]
[1721967772940,5.6731,176.27,176.21,20.0]
[1721967773452,5.6728,176.28,176.21,20.0]
[1721967774631,5.6732,176.27,176.21,20.0]
[1721967775227,5.6721,176.3,176.21,20.0]